fUST/lending_fUST_20250601
["ID","MTS","AMOUNT","RATE_DAILY","PERIOD"]
[363385228,1748711467290,-707.05,0.00021917,2]
[363385229,1748711467300,-554.68,0.00021917,2]
[363385230,1748711467310,-765.34,0.00021917,2]
[363385231,1748711467321,-1861.82,0.00021917,2]
[363385232,1748711467330,-1278.09,0.00021917,2]
[363385233,1748711467341,-1224.97,0.00021917,2]
[363385234,1748711467351,-537.5,0.00021917,2]
[363385235,1748711467362,-450.32,0.00021917,2]
[363385236,1748711467372,-746.16,0.00021917,2]
[363385237,1748711467382,-779.61,0.00021917,2]
[363385238,1748711467392,-503.82,0.00021917,2]
[363385239,1748711467402,-824.29,0.00021917,2]
[363385240,1748711467412,-430.0,0.00021917,2]
[363385241,1748711467421,-388.13056107,0.00021918,2]
[363385243,1748711545919,-380.0,0.00016272,2]
[363385244,1748711654419,500.0,0.00014721,2]
[363385245,1748711659042,265.17048447,0.00014249,2]
[363385253,1748711948765,513.85,0.00024657,120]
[363385256,1748712326496,551.59863243,0.00013699,2]
[363385257,1748712326520,426.40018257,0.00013699,2]
[363385261,1748712390099,-153.23809883,0.00015132,2]
[363385262,1748712400731,4070.02481743,0.00015,2]
[363385263,1748712400755,929.97518257,0.00015,2]
[363385264,1748712415922,3566.44981743,0.00015,2]
[363385265,1748712415945,1433.55018257,0.00015,2]
[363385266,1748712428119,-306.80724105,0.00015031,2]
[363385267,1748712428144,-58.31584783,0.00015131,2]
[363385268,1748712431026,3062.87481743,0.00015,2]
[363385269,1748712431050,1937.12518257,0.00015,2]
[363385270,1748712441092,-441.68415217,0.00015131,2]
[363385271,1748712441116,-352.45801909,0.00015131,2]
[363385272,1748712441141,-300.0,0.00015131,2]
[363385273,1748712441164,-3369.83391188,0.00015132,2]
[363385274,1748712446909,2559.29981743,0.00015,2]
[363385275,1748712446931,2440.70018257,0.00015,2]
[363385276,1748712462653,2055.72481743,0.00015,2]
[363385277,1748712462677,2944.27518257,0.00015,2]
[363385278,1748712478390,1552.14981743,0.00015,2]
[363385279,1748712478414,3447.85018257,0.00015,2]
[363385280,1748712492004,411.77713436,0.00010618,2]
[363385281,1748712494088,636.79768307,0.00015,2]
[363385282,1748712494113,4363.20231693,0.00015,2]
[363385283,1748712505169,133.22268307,0.00013,2]
[363385284,1748712505209,19516.94313618,0.00013,2]
[363385285,1748712513021,672.45275332,0.0001,7]
[363385286,1748712517382,1000.0,0.0001,2]
[363385293,1748712554139,-575.98452906,0.000149,2]
[363385294,1748712554160,-5000.0,0.0001498,2]
[363385295,1748712554183,-19209.02781078,0.0001498,2]
[363385296,1748712560135,-3754.61510937,0.0001498,2]
[363385297,1748712560157,-10334.92109276,0.00015,2]
[363385298,1748712560183,-21376.92798929,0.00015132,2]
[363385299,1748712560220,-1350.07525043,0.00015478,2]
[363385348,1748712632259,-688.91966362,0.00014981,2]
[363385350,1748712632271,-4311.08033638,0.00014981,2]
[363385352,1748712632282,-160.0,0.00015132,2]
[363385354,1748712632291,-732.026365,0.00015169,2]
[363385356,1748712632300,-319.08900097,0.00015478,2]
[363385358,1748712632310,-500.0,0.00015496,2]
[363385362,1748712632320,-300.0,0.00015779,2]
[363385365,1748712632329,-300.0,0.00015779,2]
[363385368,1748712632339,-3011.47452447,0.0001578,2]
[363385372,1748712632351,-263.07917187,0.0001578,2]
[363385398,1748712638050,-1749.38833857,0.0001578,2]
[363385400,1748712638062,-3069.74711159,0.0001578,2]
[363385402,1748712638071,-461.43719437,0.000161,2]
[363385404,1748712638081,-402.45011424,0.000162,2]
[363385406,1748712638091,-459.16147159,0.0001631,2]
[363385407,1748712638100,-500.0,0.00016311,2]
[363385408,1748712638109,-403.96972619,0.00016437,2]
[363385409,1748712638120,-500.0,0.00016437,2]
[363385410,1748712638128,-500.0,0.00016437,2]
[363385411,1748712638136,-500.0,0.00016437,2]
[363385412,1748712638144,-500.0,0.00016437,2]
[363385413,1748712638152,-500.0,0.00016437,2]
[363385414,1748712638161,-500.0,0.00016437,2]
[363385415,1748712638170,-500.0,0.00016437,2]
[363385416,1748712638179,-500.0,0.00016437,2]
[363385417,1748712638191,-500.0,0.00016437,2]
[363385418,1748712638201,-500.0,0.00016437,2]
[363385419,1748712638211,-452.54082114,0.00016437,2]
[363385420,1748712638221,-500.0,0.00016437,2]
[363385421,1748712638232,-500.0,0.00016437,2]
[363385423,1748712638242,-500.0,0.00016437,2]
[363385424,1748712638252,-500.0,0.00016437,2]
[363385425,1748712638261,-500.0,0.00016437,2]
[363385426,1748712638271,-500.0,0.00016437,2]
[363385427,1748712638280,-500.0,0.00016437,2]
[363385428,1748712638289,-250.0,0.00016437,2]
[363385429,1748712638298,-577.23740673,0.00016438,2]
[363385430,1748712638308,-400.59629711,0.00016438,2]
[363385431,1748712638317,-430.0,0.00016438,2]
[363385432,1748712638327,-372.98835356,0.00016438,2]
[363385433,1748712638336,-430.0,0.00016438,2]
[363385434,1748712638345,-400.81391833,0.00016438,2]
[363385435,1748712638354,-430.0,0.00016438,2]
[363385436,1748712638363,-430.0,0.00016438,2]
[363385437,1748712638371,-219.46690057,0.00016438,2]
[363385438,1748712638381,-430.0,0.00016438,2]
[363385439,1748712638390,-430.0,0.00016438,2]
[363385440,1748712638399,-430.0,0.00016438,2]
[363385441,1748712638409,-430.0,0.00016438,2]
[363385442,1748712638417,-156.94,0.00016438,2]
[363385443,1748712638428,-408.20804156,0.00016438,2]
[363385444,1748712638437,-430.0,0.00016438,2]
[363385445,1748712638447,-430.0,0.00016438,2]
[363385446,1748712638456,-430.0,0.00016438,2]
[363385447,1748712638466,-469.60915009,0.00016438,2]
[363385448,1748712638475,-430.0,0.00016438,2]
[363385449,1748712638484,-430.0,0.00016438,2]
[363385450,1748712638507,-430.0,0.00016438,2]
[363385451,1748712638518,-437.08235146,0.00016438,2]
[363385452,1748712638527,-430.0,0.00016438,2]
[363385453,1748712638537,-432.72494564,0.00016438,2]
[363385454,1748712638547,-430.0,0.00016438,2]
[363385455,1748712638556,-430.0,0.00016438,2]
[363385456,1748712638566,-347.60372021,0.00016438,2]
[363385457,1748712638576,-430.0,0.00016438,2]
[363385458,1748712638586,-430.0,0.00016438,2]
[363385459,1748712638595,-430.0,0.00016438,2]
[363385460,1748712638604,-430.0,0.00016438,2]
[363385461,1748712638614,-434.14942137,0.00016438,2]
[363385462,1748712638623,-332.44511363,0.00016438,2]
[363385463,1748712638631,-430.0,0.00016438,2]
[363385464,1748712638640,-430.0,0.00016438,2]
[363385465,1748712638649,-437.6194708,0.00016438,2]
[363385466,1748712638658,-433.73079762,0.00016438,2]
[363385467,1748712638667,-430.0,0.00016438,2]
[363385468,1748712638678,-430.0,0.00016438,2]
[363385469,1748712638686,-431.81720152,0.00016438,2]
[363385470,1748712638695,-402.31590047,0.00016438,2]
[363385471,1748712638704,-539.73318184,0.00016438,2]
[363385472,1748712638713,-430.0,0.00016438,2]
[363385473,1748712638724,-430.0,0.00016438,2]
[363385474,1748712638733,-430.0,0.00016438,2]
[363385475,1748712638741,-430.0,0.00016438,2]
[363385476,1748712638753,-267.53953565,0.00016438,2]
[363385477,1748712638766,-430.0,0.00016438,2]
[363385478,1748712638775,-430.0,0.00016438,2]
[363385479,1748712638784,-430.0,0.00016438,2]
[363385480,1748712638793,-436.57179941,0.00016438,2]
[363385481,1748712638802,-430.0,0.00016438,2]
[363385482,1748712638811,-354.44294857,0.00016438,2]
[363385483,1748712638821,-348.79835006,0.00016438,2]
[363385484,1748712638829,-430.0,0.00016438,2]
[363385485,1748712638838,-430.0,0.00016438,2]
[363385486,1748712638847,-430.0,0.00016438,2]
[363385487,1748712638857,-400.0,0.00016438,2]
[363385488,1748712638867,-430.0,0.00016438,2]
[363385489,1748712638878,-430.0,0.00016438,2]
[363385490,1748712638887,-436.98133384,0.00016438,2]
[363385491,1748712638897,-430.0,0.00016438,2]
[363385492,1748712639089,-430.0,0.00016438,2]
[363385493,1748712639099,-430.0,0.00016438,2]
[363385494,1748712639109,-430.0,0.00016438,2]
[363385495,1748712639123,-433.05810381,0.00016438,2]
[363385496,1748712639132,-430.0,0.00016438,2]
[363385497,1748712639143,-430.0,0.00016438,2]
[363385498,1748712639153,-400.0,0.00016438,2]
[363385499,1748712639163,-433.45707947,0.00016438,2]
[363385500,1748712639174,-435.05701142,0.00016438,2]
[363385501,1748712639185,-430.0,0.00016438,2]
[363385502,1748712639195,-430.0,0.00016438,2]
[363385503,1748712639207,-430.0,0.00016438,2]
[363385504,1748712639217,-430.0,0.00016438,2]
[363385505,1748712639227,-368.63756243,0.00016438,2]
[363385506,1748712639238,-430.0,0.00016438,2]
[363385507,1748712639248,-430.0,0.00016438,2]
[363385508,1748712639259,-430.0,0.00016438,2]
[363385509,1748712639268,-430.0,0.00016438,2]
[363385510,1748712639278,-430.0,0.00016438,2]
[363385511,1748712639288,-424.78715799,0.00016438,2]
[363385512,1748712639298,-356.9429258,0.00016438,2]
[363385513,1748712639308,-437.26328345,0.00016438,2]
[363385514,1748712639318,-405.47137417,0.00016438,2]
[363385515,1748712639328,-430.0,0.00016438,2]
[363385516,1748712639338,-511.12658918,0.00016438,2]
[363385517,1748712639347,-434.96709773,0.00016438,2]
[363385518,1748712639357,-430.0,0.00016438,2]
[363385519,1748712639367,-432.12186968,0.00016438,2]
[363385520,1748712639377,-394.27382801,0.00016438,2]
[363385521,1748712639388,-430.0,0.00016438,2]
[363385522,1748712639398,-430.0,0.00016438,2]
[363385523,1748712639408,-430.0,0.00016438,2]
[363385524,1748712639418,-430.0,0.00016438,2]
[363385525,1748712639427,-409.77513746,0.00016438,2]
[363385526,1748712639437,-400.0,0.00016438,2]
[363385527,1748712639446,-450.0,0.00016438,2]
[363385528,1748712639457,-500.0,0.00016438,2]
[363385529,1748712639467,-430.0,0.00016438,2]
[363385530,1748712639476,-523.10685768,0.00016438,2]
[363385531,1748712639486,-430.0,0.00016438,2]
[363385532,1748712639496,-400.0,0.00016438,2]
[363385533,1748712639506,-430.0,0.00016438,2]
[363385534,1748712639518,-430.0,0.00016438,2]
[363385535,1748712639528,-430.0,0.00016438,2]
[363385536,1748712639539,-311.25886417,0.00016438,2]
[363385537,1748712639548,-430.0,0.00016438,2]
[363385538,1748712639559,-430.0,0.00016438,2]
[363385539,1748712639569,-430.0,0.00016438,2]
[363385540,1748712639578,-430.0,0.00016438,2]
[363385541,1748712639588,-430.0,0.00016438,2]
[363385542,1748712639598,-430.0,0.00016438,2]
[363385543,1748712639608,-430.0,0.00016438,2]
[363385544,1748712639618,-405.20624908,0.00016438,2]
[363385545,1748712639628,-430.0,0.00016438,2]
[363385546,1748712639638,-430.0,0.00016438,2]
[363385547,1748712639648,-430.0,0.00016438,2]
[363385548,1748712639658,-400.85672942,0.00016438,2]
[363385549,1748712639674,-430.0,0.00016438,2]
[363385550,1748712639685,-413.26113355,0.00016438,2]
[363385551,1748712639694,-430.0,0.00016438,2]
[363385552,1748712639705,-430.0,0.00016438,2]
[363385553,1748712639715,-430.0,0.00016438,2]
[363385554,1748712639726,-430.0,0.00016438,2]
[363385555,1748712639736,-430.0,0.00016438,2]
[363385556,1748712639746,-430.0,0.00016438,2]
[363385557,1748712639756,-189.22701946,0.00016438,2]
[363385558,1748712639766,-402.19344007,0.00016438,2]
[363385559,1748712639776,-430.0,0.00016438,2]
[363385560,1748712639786,-430.0,0.00016438,2]
[363385561,1748712639795,-430.0,0.00016438,2]
[363385562,1748712639805,-430.0,0.00016438,2]
[363385563,1748712639815,-430.0,0.00016438,2]
[363385564,1748712639825,-430.0,0.00016438,2]
[363385565,1748712639835,-430.0,0.00016438,2]
[363385566,1748712639845,-430.0,0.00016438,2]
[363385567,1748712639854,-430.0,0.00016438,2]
[363385568,1748712639864,-430.0,0.00016438,2]
[363385569,1748712639872,-406.44319564,0.00016438,2]
[363385570,1748712639881,-450.0,0.00016438,2]
[363385571,1748712639890,-430.0,0.00016438,2]
[363385572,1748712639899,-526.08000274,0.00016438,2]
[363385573,1748712639909,-400.0,0.00016438,2]
[363385574,1748712639918,-430.0,0.00016438,2]
[363385575,1748712639928,-430.0,0.00016438,2]
[363385576,1748712639937,-430.0,0.00016438,2]
[363385577,1748712639947,-465.98367526,0.00016438,2]
[363385578,1748712639956,-430.0,0.00016438,2]
[363385579,1748712639966,-430.0,0.00016438,2]
[363385580,1748712639975,-936.13,0.00016438,2]
[363385581,1748712639985,-430.0,0.00016438,2]
[363385582,1748712639995,-430.0,0.00016438,2]
[363385583,1748712640004,-510.43404851,0.00016438,2]
[363385584,1748712640014,-430.0,0.00016438,2]
[363385585,1748712640024,-430.0,0.00016438,2]
[363385586,1748712640034,-405.4862229,0.00016438,2]
[363385587,1748712640044,-281.13052397,0.00016438,2]
[363385588,1748712640054,-430.0,0.00016438,2]
[363385590,1748712640063,-677.04,0.00016438,2]
[363385591,1748712640073,-400.0,0.00016438,2]
[363385592,1748712640083,-778.46,0.00016438,2]
[363385593,1748712640093,-430.0,0.00016438,2]
[363385594,1748712640103,-430.0,0.00016438,2]
[363385596,1748712640114,-430.0,0.00016438,2]
[363385597,1748712640127,-430.0,0.00016438,2]
[363385598,1748712640137,-430.0,0.00016438,2]
[363385599,1748712640146,-430.0,0.00016438,2]
[363385600,1748712640156,-430.0,0.00016438,2]
[363385601,1748712640166,-430.0,0.00016438,2]
[363385602,1748712640177,-462.5465889,0.00016438,2]
[363385604,1748712640187,-430.0,0.00016438,2]
[363385605,1748712640196,-430.0,0.00016438,2]
[363385607,1748712640208,-497.35824121,0.00016438,2]
[363385609,1748712640218,-430.0,0.00016438,2]
[363385610,1748712640227,-430.0,0.00016438,2]
[363385612,1748712640237,-430.0,0.00016438,2]
[363385614,1748712640248,-316.32705389,0.00016438,2]
[363385616,1748712640257,-430.0,0.00016438,2]
[363385617,1748712640268,-430.0,0.00016438,2]
[363385618,1748712640277,-695.71,0.00016438,2]
[363385620,1748712640288,-430.0,0.00016438,2]
[363385621,1748712640298,-430.0,0.00016438,2]
[363385622,1748712640308,-430.0,0.00016438,2]
[363385623,1748712640318,-430.0,0.00016438,2]
[363385624,1748712640329,-430.0,0.00016438,2]
[363385626,1748712640338,-430.0,0.00016438,2]
[363385627,1748712640348,-500.0,0.00016438,2]
[363385628,1748712640357,-430.0,0.00016438,2]
[363385629,1748712640367,-1440.05,0.00016438,2]
[363385630,1748712640377,-430.0,0.00016438,2]
[363385631,1748712640388,-430.0,0.00016438,2]
[363385632,1748712640398,-430.0,0.00016438,2]
[363385633,1748712640408,-430.0,0.00016438,2]
[363385634,1748712640418,-430.0,0.00016438,2]
[363385635,1748712640428,-684.51,0.00016438,2]
[363385636,1748712640438,-430.0,0.00016438,2]
[363385637,1748712640448,-400.0,0.00016438,2]
[363385638,1748712640458,-430.0,0.00016438,2]
[363385639,1748712640467,-430.0,0.00016438,2]
[363385640,1748712640478,-430.0,0.00016438,2]
[363385641,1748712640488,-634.59,0.00016438,2]
[363385642,1748712640498,-430.0,0.00016438,2]
[363385645,1748712640508,-430.0,0.00016438,2]
[363385647,1748712640517,-430.0,0.00016438,2]
[363385649,1748712640527,-430.0,0.00016438,2]
[363385651,1748712640536,-430.0,0.00016438,2]
[363385652,1748712640545,-430.0,0.00016438,2]
[363385654,1748712640555,-430.0,0.00016438,2]
[363385656,1748712640564,-430.0,0.00016438,2]
[363385658,1748712640575,-430.0,0.00016438,2]
[363385659,1748712640584,-430.0,0.00016438,2]
[363385661,1748712640595,-430.0,0.00016438,2]
[363385663,1748712640604,-430.0,0.00016438,2]
[363385664,1748712640614,-430.0,0.00016438,2]
[363385666,1748712640623,-1228.18,0.00016438,2]
[363385668,1748712640633,-430.0,0.00016438,2]
[363385670,1748712640642,-430.0,0.00016438,2]
[363385671,1748712640652,-430.0,0.00016438,2]
[363385672,1748712640661,-437.50239988,0.00016438,2]
[363385673,1748712640671,-430.0,0.00016438,2]
[363385674,1748712640681,-430.0,0.00016438,2]
[363385675,1748712640691,-430.0,0.00016438,2]
[363385676,1748712640700,-430.0,0.00016438,2]
[363385677,1748712640710,-465.45,0.00016438,2]
[363385678,1748712640720,-430.0,0.00016438,2]
[363385679,1748712640729,-430.0,0.00016438,2]
[363385680,1748712640738,-430.0,0.00016438,2]
[363385681,1748712640748,-430.0,0.00016438,2]
[363385682,1748712640759,-430.0,0.00016438,2]
[363385683,1748712640770,-430.0,0.00016438,2]
[363385684,1748712640779,-350.0,0.00016438,2]
[363385685,1748712640788,-430.0,0.00016438,2]
[363385686,1748712640798,-430.0,0.00016438,2]
[363385687,1748712640807,-430.0,0.00016438,2]
[363385688,1748712640817,-352.75920492,0.00016438,2]
[363385689,1748712640827,-430.0,0.00016438,2]
[363385690,1748712640836,-430.0,0.00016438,2]
[363385691,1748712640846,-430.0,0.00016438,2]
[363385692,1748712640855,-430.0,0.00016438,2]
[363385693,1748712640865,-430.0,0.00016438,2]
[363385694,1748712640876,-430.0,0.00016438,2]
[363385695,1748712640885,-430.0,0.00016438,2]
[363385696,1748712640895,-430.0,0.00016438,2]
[363385697,1748712640904,-430.0,0.00016438,2]
[363385698,1748712640914,-433.62,0.00016438,2]
[363385699,1748712640923,-430.0,0.00016438,2]
[363385700,1748712640934,-430.0,0.00016438,2]
[363385701,1748712640943,-430.0,0.00016438,2]
[363385702,1748712640953,-430.0,0.00016438,2]
[363385703,1748712640962,-430.0,0.00016438,2]
[363385704,1748712640973,-430.0,0.00016438,2]
[363385705,1748712640984,-430.0,0.00016438,2]
[363385706,1748712640993,-430.0,0.00016438,2]
[363385707,1748712641002,-747.08,0.00016438,2]
[363385708,1748712641012,-432.09,0.00016438,2]
[363385709,1748712641021,-430.0,0.00016438,2]
[363385710,1748712641032,-430.0,0.00016438,2]
[363385711,1748712641042,-430.0,0.00016438,2]
[363385712,1748712641052,-430.0,0.00016438,2]
[363385713,1748712641062,-430.0,0.00016438,2]
[363385714,1748712641073,-430.0,0.00016438,2]
[363385715,1748712641086,-500.0,0.00016438,2]
[363385716,1748712641096,-430.0,0.00016712,2]
[363385717,1748712641106,-524.85258946,0.00016712,2]
[363385718,1748712641117,-433.7011679,0.00016712,2]
[363385719,1748712641129,-430.0,0.00016712,2]
[363385720,1748712641138,-430.0,0.00016712,2]
[363385721,1748712641148,-371.75727751,0.00016712,2]
[363385722,1748712641158,-430.0,0.00016712,2]
[363385723,1748712641168,-430.0,0.00016712,2]
[363385724,1748712641177,-430.0,0.00016712,2]
[363385725,1748712641187,-430.0,0.00016712,2]
[363385726,1748712641199,-430.0,0.00016712,2]
[363385727,1748712641209,-448.57942235,0.00016712,2]
[363385728,1748712641218,-430.0,0.00016712,2]
[363385729,1748712641228,-430.0,0.00016712,2]
[363385730,1748712641238,-430.0,0.00016712,2]
[363385731,1748712641247,-430.0,0.00016712,2]
[363385732,1748712641257,-430.0,0.00016712,2]
[363385733,1748712641265,-430.0,0.00016712,2]
[363385734,1748712641274,-430.0,0.00016712,2]
[363385735,1748712641284,-430.0,0.00016712,2]
[363385736,1748712641294,-430.0,0.00016712,2]
[363385737,1748712641303,-430.0,0.00016712,2]
[363385738,1748712641313,-430.0,0.00016712,2]
[363385739,1748712641323,-430.0,0.00016712,2]
[363385740,1748712641332,-430.0,0.00016712,2]
[363385741,1748712641342,-375.64,0.00016712,2]
[363385742,1748712641352,-430.0,0.00016712,2]
[363385743,1748712641361,-430.0,0.00016712,2]
[363385744,1748712641370,-430.0,0.00016712,2]
[363385745,1748712641380,-430.0,0.00016712,2]
[363385746,1748712641390,-430.0,0.00016712,2]
[363385747,1748712641399,-432.85789592,0.00016712,2]
[363385748,1748712641408,-430.0,0.00016712,2]
[363385749,1748712641418,-430.0,0.00016712,2]
[363385750,1748712641427,-430.0,0.00016712,2]
[363385751,1748712641437,-430.0,0.00016712,2]
[363385752,1748712641446,-430.0,0.00016712,2]
[363385753,1748712641455,-506.38224862,0.00016712,2]
[363385754,1748712641471,-430.0,0.00016712,2]
[363385755,1748712641482,-430.0,0.00016712,2]
[363385756,1748712641491,-430.0,0.00016712,2]
[363385757,1748712641500,-430.0,0.00016712,2]
[363385758,1748712641509,-936.13,0.00016712,2]
[363385759,1748712641518,-430.0,0.00016712,2]
[363385760,1748712641527,-430.0,0.00016712,2]
[363385761,1748712641537,-677.04,0.00016712,2]
[363385762,1748712641546,-778.46,0.00016712,2]
[363385763,1748712641555,-430.0,0.00016712,2]
[363385764,1748712641564,-430.0,0.00016712,2]
[363385765,1748712641603,-430.0,0.00016712,2]
[363385766,1748712641612,-430.0,0.00016712,2]
[363385767,1748712641620,-430.0,0.00016712,2]
[363385768,1748712641628,-326.48807226,0.00016712,2]
[363385769,1748712641637,-430.0,0.00016712,2]
[363385770,1748712641646,-430.0,0.00016712,2]
[363385771,1748712641655,-430.0,0.00016712,2]
[363385772,1748712641664,-430.0,0.00016712,2]
[363385773,1748712641672,-430.0,0.00016712,2]
[363385774,1748712641682,-430.0,0.00016712,2]
[363385775,1748712641690,-695.71,0.00016712,2]
[363385776,1748712641699,-313.26789901,0.00016712,2]
[363385777,1748712641708,-430.0,0.00016712,2]
[363385778,1748712641716,-430.0,0.00016712,2]
[363385779,1748712641724,-430.0,0.00016712,2]
[363385780,1748712641732,-430.0,0.00016712,2]
[363385781,1748712641740,-430.0,0.00016712,2]
[363385782,1748712641749,-1440.05,0.00016712,2]
[363385783,1748712641759,-430.0,0.00016712,2]
[363385784,1748712641768,-430.0,0.00016712,2]
[363385785,1748712641778,-430.0,0.00016712,2]
[363385786,1748712641787,-684.51,0.00016712,2]
[363385787,1748712641797,-430.0,0.00016712,2]
[363385788,1748712641807,-430.0,0.00016712,2]
[363385789,1748712641816,-430.0,0.00016712,2]
[363385790,1748712641825,-634.59,0.00016712,2]
[363385791,1748712641835,-240.33,0.00016712,2]
[363385792,1748712641844,-430.0,0.00016712,2]
[363385793,1748712641853,-430.0,0.00016712,2]
[363385794,1748712641863,-430.0,0.00016712,2]
[363385795,1748712641872,-430.0,0.00016712,2]
[363385796,1748712641882,-430.0,0.00016712,2]
[363385797,1748712641891,-456.56244267,0.00016712,2]
[363385798,1748712641900,-430.0,0.00016712,2]
[363385799,1748712641910,-430.0,0.00016712,2]
[363385800,1748712641920,-430.0,0.00016712,2]
[363385801,1748712641931,-1228.18,0.00016712,2]
[363385802,1748712641940,-430.0,0.00016712,2]
[363385803,1748712641949,-430.0,0.00016712,2]
[363385804,1748712641959,-430.0,0.00016712,2]
[363385805,1748712641969,-430.0,0.00016712,2]
[363385806,1748712641978,-430.0,0.00016712,2]
[363385807,1748712641988,-430.0,0.00016712,2]
[363385808,1748712641997,-430.0,0.00016712,2]
[363385809,1748712642007,-465.45,0.00016712,2]
[363385810,1748712642016,-534.44,0.00016712,2]
[363385811,1748712642026,-509.40951247,0.00016712,2]
[363385812,1748712642036,-430.0,0.00016712,2]
[363385813,1748712642045,-430.0,0.00016712,2]
[363385814,1748712642055,-430.0,0.00016712,2]
[363385815,1748712642064,-430.0,0.00016712,2]
[363385816,1748712642073,-430.0,0.00016712,2]
[363385817,1748712642083,-430.0,0.00016712,2]
[363385818,1748712642092,-430.0,0.00016712,2]
[363385819,1748712642101,-430.0,0.00016712,2]
[363385820,1748712642110,-430.0,0.00016712,2]
[363385821,1748712642122,-433.62,0.00016712,2]
[363385822,1748712642131,-430.0,0.00016712,2]
[363385823,1748712642141,-747.08,0.00016712,2]
[363385824,1748712642150,-432.09,0.00016712,2]
[363385825,1748712642159,-304.0,0.000168,2]
[363385826,1748712642169,-227.77199494,0.00016886,2]
[363385827,1748712642179,-831.76366468,0.000169,2]
[363385828,1748712642188,-502.05716297,0.00016956,2]
[363385829,1748712642200,-500.0,0.00016956,2]
[363385830,1748712642209,-300.09488458,0.00016956,2]
[363385831,1748712642219,-500.0,0.00016956,2]
[363385832,1748712642229,-500.0,0.00016956,2]
[363385833,1748712642238,-160.0,0.00016985,2]
[363385834,1748712642248,-151.0,0.00016986,2]
[363385835,1748712642257,-151.0,0.00016986,2]
[363385836,1748712642267,-151.0,0.00016986,2]
[363385837,1748712642278,-250.0,0.00016986,2]
[363385838,1748712642289,-430.0,0.00016986,2]
[363385839,1748712642300,-188.22498822,0.00016986,2]
[363385840,1748712642310,-430.0,0.00016986,2]
[363385841,1748712642321,-170.7,0.00016986,2]
[363385842,1748712642331,-430.0,0.00016986,2]
[363385843,1748712642340,-437.29061457,0.00016986,2]
[363385844,1748712642349,-430.0,0.00016986,2]
[363385845,1748712642359,-430.0,0.00016986,2]
[363385846,1748712642368,-430.0,0.00016986,2]
[363385847,1748712642377,-387.19311173,0.00016986,2]
[363385848,1748712642388,-430.0,0.00016986,2]
[363385849,1748712642398,-430.0,0.00016986,2]
[363385850,1748712642407,-430.0,0.00016986,2]
[363385851,1748712642417,-430.0,0.00016986,2]
[363385852,1748712642427,-430.0,0.00016986,2]
[363385853,1748712642437,-430.0,0.00016986,2]
[363385854,1748712642447,-400.9984236,0.00016986,2]
[363385855,1748712642456,-430.0,0.00016986,2]
[363385856,1748712642466,-430.0,0.00016986,2]
[363385857,1748712642476,-936.13,0.00016986,2]
[363385858,1748712642486,-430.0,0.00016986,2]
[363385859,1748712642496,-677.04,0.00016986,2]
[363385860,1748712642506,-778.46,0.00016986,2]
[363385861,1748712642515,-430.0,0.00016986,2]
[363385862,1748712642525,-430.0,0.00016986,2]